fUSD/lending_fUSD_20250622
["ID","MTS","AMOUNT","RATE_DAILY","PERIOD"]
[366902655,1750561844153,-1066.18,0.00019178,2]
[366902656,1750561844160,-1031.7,0.00019178,2]
[366902657,1750561844166,-490.0,0.00019178,2]
[366902658,1750561844173,-1563.81,0.00019178,2]
[366902659,1750561844182,-490.0,0.00019178,2]
[366902660,1750561844191,-490.0,0.00019178,2]
[366902661,1750561844201,-490.0,0.00019178,2]
[366902662,1750561844211,-490.0,0.00019178,2]
[366902663,1750561844221,-490.0,0.00019178,2]
[366902664,1750561844231,-490.0,0.00019178,2]
[366902665,1750561844241,-490.0,0.00019178,2]
[366902666,1750561844251,-593.18,0.00019178,2]
[366902667,1750561844260,-490.0,0.00019178,2]
[366902668,1750561844269,-575.4,0.00019178,2]
[366902669,1750561844279,-490.0,0.00019178,2]
[366902670,1750561844288,-490.0,0.00019178,2]
[366902671,1750561844299,-490.0,0.00019178,2]
[366902672,1750561844313,-490.0,0.00019178,2]
[366902673,1750561844323,-490.0,0.00019178,2]
[366902674,1750561844333,-2421.49,0.00019178,2]
[366902675,1750561844344,-827.17,0.00019178,2]
[366902676,1750561844353,-490.0,0.00019178,2]
[366902677,1750561844363,-490.0,0.00019178,2]
[366902678,1750561844372,-838.96,0.00019178,2]
[366902679,1750561844382,-490.0,0.00019178,2]
[366902680,1750561844392,-490.0,0.00019178,2]
[366902681,1750561844402,-490.0,0.00019178,2]
[366902682,1750561844414,-1231.86,0.00019178,2]
[366902683,1750561844423,-570.17,0.00019178,2]
[366902684,1750561844433,-490.0,0.00019178,2]
[366902685,1750561844442,-490.0,0.00019178,2]
[366902686,1750561844454,-490.0,0.00019178,2]
[366902687,1750561844465,-490.0,0.00019178,2]
[366902688,1750561844475,-491.44406328,0.00019178,2]
[366902689,1750561844486,-490.0,0.00019178,2]
[366902690,1750561844495,-401.54549818,0.00019178,2]
[366902691,1750561844505,-2610.29,0.00019178,2]
[366902692,1750561844515,-490.0,0.00019178,2]
[366902693,1750561844526,-490.0,0.00019178,2]
[366902694,1750561844535,-490.0,0.00019178,2]
[366902695,1750561844547,-490.0,0.00019178,2]
[366902696,1750561844556,-494.27125719,0.00019178,2]
[366902697,1750561844567,-490.0,0.00019178,2]
[366902698,1750561844576,-490.0,0.00019178,2]
[366902699,1750561844586,-490.0,0.00019178,2]
[366902700,1750561844595,-1546.76,0.00019178,2]
[366902701,1750561844604,-1940.81,0.00019178,2]
[366902702,1750561844616,-1154.94,0.00019178,2]
[366902703,1750561844626,-490.0,0.00019178,2]
[366902704,1750561844636,-495.39646925,0.00019178,2]
[366902705,1750561844646,-1253.09,0.00019178,2]
[366902706,1750561844656,-491.81204926,0.00019178,2]
[366902707,1750561844666,-491.46629006,0.00019178,2]
[366902708,1750561844676,-490.0,0.00019178,2]
[366902709,1750561844686,-490.0,0.00019178,2]
[366902710,1750561844695,-493.86009671,0.00019178,2]
[366902711,1750561844705,-490.0,0.00019178,2]
[366902712,1750561844715,-775.81,0.00019178,2]
[366902713,1750561844725,-1487.68,0.00019178,2]
[366902714,1750561844736,-491.99180732,0.00019178,2]
[366902715,1750561844746,-490.0,0.00019178,2]
[366902716,1750561844756,-913.53,0.00019178,2]
[366902717,1750561844765,-1746.86,0.00019178,2]
[366902718,1750561844775,-490.0,0.00019178,2]
[366902719,1750561844785,-490.0,0.00019178,2]
[366902720,1750561844795,-490.0,0.00019178,2]
[366902721,1750561844805,-560.39,0.00019178,2]
[366902722,1750561844815,-490.0,0.00019178,2]
[366902723,1750561844825,-490.0,0.00019178,2]
[366902724,1750561844835,-490.0,0.00019178,2]
[366902725,1750561844845,-490.0,0.00019178,2]
[366902726,1750561844855,-1235.11,0.00019178,2]
[366902727,1750561844866,-490.0,0.00019178,2]
[366902728,1750561844875,-491.17016617,0.00019178,2]
[366902729,1750561844886,-490.0,0.00019178,2]
[366902730,1750561844896,-490.0,0.00019178,2]
[366902731,1750561844906,-990.08,0.00019178,2]
[366902732,1750561844916,-490.0,0.00019178,2]
[366902733,1750561844926,-490.0,0.00019178,2]
[366902734,1750561844935,-626.98,0.00019178,2]
[366902735,1750561844944,-2660.45,0.00019178,2]
[366902736,1750561844954,-602.27,0.00019178,2]
[366902737,1750561844964,-1325.31,0.00019178,2]
[366902738,1750561844974,-490.0,0.00019178,2]
[366902739,1750561844983,-490.0,0.00019178,2]
[366902740,1750561844993,-747.75,0.00019178,2]
[366902741,1750561845003,-2727.24,0.00019178,2]
[366902742,1750561845014,-490.0,0.00019178,2]
[366902743,1750561845025,-641.81,0.00019178,2]
[366902744,1750561845035,-490.0,0.00019178,2]
[366902745,1750561845046,-1645.41,0.00019178,2]
[366902746,1750561845056,-490.0,0.00019178,2]
[366902747,1750561845067,-490.0,0.00019178,2]
[366902748,1750561845078,-490.0,0.00019178,2]
[366902749,1750561845087,-24471.3,0.00019178,2]
[366902750,1750561845098,-916.52,0.00019178,2]
[366902751,1750561845107,-1299.71,0.00019178,2]
[366902752,1750561845118,-492.10873076,0.00019178,2]
[366902753,1750561845129,-490.0,0.00019178,2]
[366902754,1750561845139,-1631.03,0.00019178,2]
[366902755,1750561845149,-490.0,0.00019178,2]
[366902756,1750561845159,-490.0,0.00019178,2]
[366902757,1750561845170,-490.0,0.00019178,2]
[366902758,1750561845181,-490.0,0.00019178,2]
[366902759,1750561845191,-732.98,0.00019178,2]
[366902760,1750561845201,-2212.51,0.00019178,2]
[366902761,1750561845211,-490.0,0.00019178,2]
[366902762,1750561845220,-490.0,0.00019178,2]
[366902763,1750561845231,-490.0,0.00019178,2]
[366902764,1750561845241,-490.0,0.00019178,2]
[366902765,1750561845251,-490.0,0.00019178,2]
[366902766,1750561845261,-490.0,0.00019178,2]
[366902767,1750561845271,-545.54,0.00019178,2]
[366902768,1750561845281,-1986.16,0.00019178,2]
[366902769,1750561845291,-490.0,0.00019178,2]
[366902770,1750561845301,-1648.41,0.00019178,2]
[366902771,1750561845311,-490.0,0.00019178,2]
[366902772,1750561845322,-490.0,0.00019178,2]
[366902773,1750561845332,-490.0,0.00019178,2]
[366902774,1750561845342,-490.0,0.00019178,2]
[366902775,1750561845352,-490.0,0.00019178,2]
[366902777,1750561845362,-1107.86,0.00019178,2]
[366902778,1750561845372,-490.0,0.00019178,2]
[366902779,1750561845381,-490.0,0.00019178,2]
[366902780,1750561845391,-490.0,0.00019178,2]
[366902781,1750561845402,-490.0,0.00019178,2]
[366902782,1750561845416,-490.0,0.00019178,2]
[366902783,1750561845426,-1119.29,0.00019178,2]
[366902784,1750561845435,-490.0,0.00019178,2]
[366902785,1750561845445,-490.0,0.00019178,2]
[366902786,1750561845455,-490.0,0.00019178,2]
[366902787,1750561845464,-1799.73,0.00019178,2]
[366902788,1750561845474,-490.0,0.00019178,2]
[366902789,1750561845483,-490.0,0.00019178,2]
[366902790,1750561845494,-490.0,0.00019178,2]
[366902791,1750561845504,-1576.66,0.00019178,2]
[366902793,1750561845514,-490.0,0.00019178,2]
[366902794,1750561845523,-703.53,0.00019178,2]
[366902795,1750561845533,-1880.27,0.00019178,2]
[366902796,1750561845543,-490.0,0.00019178,2]
[366902797,1750561845552,-1192.69,0.00019178,2]
[366902798,1750561845563,-490.0,0.00019178,2]
[366902799,1750561845572,-490.0,0.00019178,2]
[366902800,1750561845583,-976.81,0.00019178,2]
[366902801,1750561845592,-490.0,0.00019178,2]
[366902802,1750561845602,-490.0,0.00019178,2]
[366902803,1750561845612,-490.0,0.00019178,2]
[366902804,1750561845622,-490.0,0.00019178,2]
[366902805,1750561845631,-490.0,0.00019178,2]
[366902806,1750561845641,-490.0,0.00019178,2]
[366902807,1750561845651,-490.0,0.00019178,2]
[366902808,1750561845660,-151.87218,0.00019178,2]
[366902809,1750561845669,-491.22793244,0.00019178,2]
[366902810,1750561845680,-490.0,0.00019178,2]
[366902811,1750561845689,-1320.39,0.00019178,2]
[366902812,1750561845700,-490.0,0.00019178,2]
[366902813,1750561845711,-490.0,0.00019178,2]
[366902814,1750561845720,-490.0,0.00019178,2]
[366902815,1750561845730,-1744.15,0.00019178,2]
[366902816,1750561845740,-444.60271817,0.00019178,2]
[366902817,1750561845751,-763.32,0.00019178,2]
[366902818,1750561845760,-490.0,0.00019178,2]
[366902819,1750561845771,-756.0,0.00019178,2]
[366902820,1750561845781,-152.592489,0.00019178,2]
[366902821,1750561845792,-490.0,0.00019178,2]
[366902822,1750561845802,-490.0,0.00019178,2]
[366902823,1750561845812,-490.0,0.00019178,2]
[366902824,1750561845823,-490.99207317,0.00019178,2]
[366902825,1750561845833,-490.0,0.00019178,2]
[366902826,1750561845843,-490.0,0.00019178,2]
[366902827,1750561845853,-411.72667887,0.00019178,2]
[366902828,1750561845862,-1276.76,0.00019178,2]
[366902829,1750561845872,-490.0,0.00019178,2]
[366902830,1750561845882,-692.79,0.00019178,2]
[366902831,1750561845892,-1192.42,0.00019178,2]
[366902832,1750561845901,-1670.19,0.00019178,2]
[366902833,1750561845911,-490.0,0.00019178,2]
[366902834,1750561845921,-490.0,0.00019178,2]
[366902835,1750561845933,-2097.99,0.00019178,2]
[366902836,1750561845942,-492.95198833,0.00019178,2]
[366902837,1750561845952,-892.01,0.00019178,2]
[366902838,1750561845961,-1609.63,0.00019178,2]
[366902839,1750561845971,-490.0,0.00019178,2]
[366902840,1750561845980,-490.0,0.00019178,2]
[366902841,1750561845990,-490.0,0.00019178,2]
[366902842,1750561845999,-490.0,0.00019178,2]
[366902843,1750561846009,-490.0,0.00019178,2]
[366902844,1750561846019,-151.0,0.00019178,2]
[366902845,1750561846028,-2018.08,0.00019178,2]
[366902846,1750561846037,-490.0,0.00019178,2]
[366902847,1750561846047,-490.0,0.00019178,2]
[366902848,1750561846057,-490.0,0.00019178,2]
[366902849,1750561846066,-490.0,0.00019178,2]
[366902850,1750561846075,-490.0,0.00019178,2]
[366902851,1750561846085,-1328.23,0.00019178,2]
[366902852,1750561846094,-1059.31,0.00019178,2]
[366902853,1750561846103,-1059.31,0.00019178,2]
[366902854,1750561846112,-1059.31,0.00019178,2]
[366902855,1750561846122,-492.47857556,0.00019178,2]
[366902856,1750561846131,-1031.31,0.00019178,2]
[366902857,1750561846141,-1433.53,0.00019178,2]
[366902858,1750561846150,-490.0,0.00019178,2]
[366902859,1750561846159,-1790.64,0.00019178,2]
[366902860,1750561846168,-869.02,0.00019178,2]
[366902861,1750561846178,-727.41,0.00019178,2]
[366902862,1750561846187,-490.0,0.00019178,2]
[366902863,1750561846198,-490.0,0.00019178,2]
[366902864,1750561846208,-490.0,0.00019178,2]
[366902865,1750561846218,-490.0,0.00019178,2]
[366902866,1750561846228,-820.49,0.00019178,2]
[366902867,1750561846237,-1119.71,0.00019178,2]
[366902868,1750561846246,-1190.71,0.00019178,2]
[366902869,1750561846255,-490.0,0.00019178,2]
[366902870,1750561846264,-1298.75,0.00019178,2]
[366902871,1750561846273,-490.0,0.00019178,2]
[366902872,1750561846283,-490.0,0.00019178,2]
[366902873,1750561846293,-483.98342654,0.00019178,2]
[366902874,1750561846303,-490.0,0.00019178,2]
[366902875,1750561846312,-490.0,0.00019178,2]
[366902876,1750561846323,-490.0,0.00019178,2]
[366902877,1750561846332,-494.52401321,0.00019178,2]
[366902878,1750561846341,-1545.23,0.00019178,2]
[366902879,1750561846350,-500.0,0.00019178,2]
[366902880,1750561846359,-526.74855793,0.00019178,2]
[366902881,1750561846369,-925.46,0.00019178,2]
[366902882,1750561846378,-832.78,0.00019178,2]
[366902883,1750561846388,-490.62,0.00019178,2]
[366902884,1750561846397,-490.0,0.00019178,2]
[366902885,1750561846409,-490.0,0.00019178,2]
[366902886,1750561846420,-490.0,0.00019178,2]
[366902887,1750561846431,-1036.93,0.00019178,2]
[366902888,1750561846441,-494.41323582,0.00019178,2]
[366902889,1750561846453,-2923.11,0.00019178,2]
[366902890,1750561846463,-490.0,0.00019178,2]
[366902891,1750561846472,-490.0,0.00019178,2]
[366902892,1750561846483,-490.0,0.00019178,2]
[366902893,1750561846494,-490.0,0.00019178,2]
[366902894,1750561846503,-490.0,0.00019178,2]
[366902895,1750561846515,-490.0,0.00019178,2]
[366902896,1750561846525,-490.0,0.00019178,2]
[366902897,1750561846534,-1835.22,0.00019178,2]
[366902898,1750561846545,-563.18,0.00019178,2]
[366902899,1750561846554,-490.0,0.00019178,2]
[366902900,1750561846564,-490.0,0.00019178,2]
[366902901,1750561846573,-490.0,0.00019178,2]
[366902902,1750561846583,-490.0,0.00019178,2]
[366902903,1750561846592,-1711.76,0.00019178,2]
[366902904,1750561846602,-942.87,0.00019178,2]
[366902905,1750561846611,-490.0,0.00019178,2]
[366902906,1750561846622,-490.0,0.00019178,2]
[366902907,1750561846632,-490.0,0.00019178,2]
[366902908,1750561846644,-490.0,0.00019178,2]
[366902909,1750561846654,-490.0,0.00019178,2]
[366902910,1750561846663,-1387.78,0.00019178,2]
[366902911,1750561846673,-490.0,0.00019178,2]
[366902912,1750561846683,-698.97,0.00019178,2]
[366902913,1750561846692,-543.35475787,0.00019178,2]
[366902914,1750561846702,-490.0,0.00019178,2]
[366902915,1750561846712,-490.0,0.00019178,2]
[366902916,1750561846722,-490.0,0.00019178,2]
[366902917,1750561846732,-958.54,0.00019178,2]
[366902918,1750561846742,-888.53,0.00019178,2]
[366902919,1750561846752,-1357.34,0.00019178,2]
[366902920,1750561846762,-490.0,0.00019178,2]
[366902921,1750561846772,-490.0,0.00019178,2]
[366902922,1750561846781,-490.0,0.00019178,2]
[366902923,1750561846791,-490.0,0.00019178,2]
[366902924,1750561846802,-490.0,0.00019178,2]
[366902925,1750561846812,-594.97,0.00019178,2]
[366902926,1750561846823,-490.0,0.00019178,2]
[366902927,1750561846833,-549.12,0.00019178,2]
[366902928,1750561846843,-490.0,0.00019178,2]
[366902929,1750561846853,-490.0,0.00019178,2]
[366902930,1750561846863,-3872.17,0.00019178,2]
[366902931,1750561846873,-490.0,0.00019178,2]
[366902932,1750561846884,-490.0,0.00019178,2]
[366902933,1750561846894,-1707.02,0.00019178,2]
[366902934,1750561846904,-1315.43,0.00019178,2]
[366902935,1750561846914,-492.79014687,0.00019178,2]
[366902936,1750561846924,-490.0,0.00019178,2]
[366902937,1750561846934,-490.0,0.00019178,2]
[366902938,1750561846944,-2368.28,0.00019178,2]
[366902939,1750561846954,-490.0,0.00019178,2]
[366902940,1750561846965,-490.0,0.00019178,2]
[366902941,1750561846975,-490.0,0.00019178,2]
[366902942,1750561846985,-567.77861507,0.00019178,2]
[366902943,1750561846995,-490.0,0.00019178,2]
[366902944,1750561847005,-591.74,0.00019178,2]
[366902945,1750561847015,-490.0,0.00019178,2]
[366902946,1750561847025,-490.0,0.00019178,2]
[366902947,1750561847035,-2511.45,0.00019178,2]
[366902948,1750561847046,-490.0,0.00019178,2]
[366902949,1750561847056,-493.11115985,0.00019178,2]
[366902950,1750561847067,-490.0,0.00019178,2]
[366902951,1750561847078,-490.0,0.00019178,2]
[366902952,1750561847088,-1610.95,0.00019178,2]
[366902953,1750561847098,-490.0,0.00019178,2]
[366902954,1750561847108,-490.0,0.00019178,2]
[366902955,1750561847118,-490.0,0.00019178,2]
[366902956,1750561847129,-490.0,0.00019178,2]
[366902957,1750561847139,-490.0,0.00019178,2]
[366902958,1750561847149,-490.0,0.00019178,2]
[366902959,1750561847160,-490.0,0.00019178,2]
[366902960,1750561847171,-490.0,0.00019178,2]
[366902961,1750561847181,-490.0,0.00019178,2]
[366902962,1750561847191,-1375.16,0.00019178,2]
[366902963,1750561847202,-490.0,0.00019178,2]
[366902964,1750561847212,-2035.52,0.00019178,2]
[366902965,1750561847223,-490.0,0.00019178,2]
[366902966,1750561847233,-490.0,0.00019178,2]
[366902967,1750561847243,-490.0,0.00019178,2]
[366902968,1750561847253,-490.0,0.00019178,2]
[366902969,1750561847263,-490.0,0.00019178,2]
[366902970,1750561847273,-2960.04,0.00019178,2]
[366902971,1750561847283,-781.43,0.00019178,2]
[366902972,1750561847293,-490.0,0.00019178,2]
[366902973,1750561847304,-490.0,0.00019178,2]
[366902974,1750561847314,-490.0,0.00019178,2]
[366902975,1750561847324,-490.0,0.00019178,2]
[366902976,1750561847334,-490.0,0.00019178,2]
[366902977,1750561847344,-490.0,0.00019178,2]
[366902978,1750561847354,-490.0,0.00019178,2]
[366902979,1750561847364,-490.0,0.00019178,2]
[366902980,1750561847375,-528.85,0.00019178,2]
[366902981,1750561847385,-516.09,0.00019178,2]
[366902982,1750561847395,-2739.26,0.00019178,2]
[366902983,1750561847405,-490.0,0.00019178,2]
[366902984,1750561847423,-1371.46,0.00019178,2]
[366902985,1750561847433,-490.0,0.00019178,2]
[366902986,1750561847444,-490.0,0.00019178,2]
[366902987,1750561847455,-2058.04,0.00019178,2]
[366902988,1750561847467,-490.0,0.00019178,2]
[366902989,1750561847479,-490.0,0.00019178,2]
[366902990,1750561847491,-490.0,0.00019178,2]
[366902991,1750561847501,-490.0,0.00019178,2]
[366902992,1750561847511,-490.0,0.00019178,2]
[366902993,1750561847522,-1084.07,0.00019178,2]
[366902994,1750561847532,-490.0,0.00019178,2]
[366902995,1750561847543,-550.02,0.00019178,2]
[366902996,1750561847554,-490.0,0.00019178,2]
[366902997,1750561847565,-490.0,0.00019178,2]
[366902998,1750561847575,-1022.03,0.00019178,2]
[366902999,1750561847586,-151.0,0.00019178,2]
[366903000,1750561847596,-490.0,0.00019178,2]
[366903001,1750561847606,-281.934372,0.00019178,2]
[366903002,1750561847616,-2221.09,0.00019178,2]
[366903003,1750561847626,-490.0,0.00019178,2]
[366903004,1750561847637,-492.5442619,0.00019178,2]
[366903005,1750561847648,-708.39,0.00019178,2]
[366903006,1750561847659,-490.0,0.00019178,2]
[366903007,1750561847670,-490.0,0.00019178,2]
[366903008,1750561847680,-490.0,0.00019178,2]
[366903009,1750561847691,-490.0,0.00019178,2]
[366903010,1750561847701,-490.0,0.00019178,2]
[366903011,1750561847711,-490.0,0.00019178,2]
[366903012,1750561847722,-490.0,0.00019178,2]
[366903013,1750561847733,-490.0,0.00019178,2]
[366903014,1750561847743,-490.0,0.00019178,2]
[366903015,1750561847754,-490.0,0.00019178,2]
[366903016,1750561847764,-1917.68,0.00019178,2]
[366903017,1750561847775,-490.0,0.00019178,2]
[366903018,1750561847785,-490.0,0.00019178,2]
[366903019,1750561847796,-490.0,0.00019178,2]
[366903020,1750561847806,-490.0,0.00019178,2]
[366903021,1750561847816,-593.47738946,0.00019178,2]
[366903022,1750561847826,-490.0,0.00019178,2]
[366903023,1750561847837,-490.0,0.00019178,2]
[366903024,1750561847847,-500.0,0.00019178,2]
[366903025,1750561847858,-151.0,0.00019178,2]
[366903026,1750561847869,-151.882356,0.00019178,2]
[366903027,1750561847880,-151.0,0.00019178,2]
[366903028,1750561847891,-2093.54,0.00019178,2]
[366903029,1750561847901,-494.82736737,0.00019178,2]
[366903030,1750561847912,-903.33,0.00019178,2]
[366903031,1750561847922,-490.0,0.00019178,2]
[366903032,1750561847933,-490.0,0.00019178,2]
[366903033,1750561847943,-1953.34,0.00019178,2]
[366903034,1750561847953,-490.0,0.00019178,2]
[366903035,1750561847963,-870.2,0.00019178,2]
[366903036,1750561847974,-151.0,0.00019178,2]
[366903037,1750561847985,-490.0,0.00019178,2]
[366903038,1750561847999,-151.0,0.00019178,2]
[366903039,1750561848012,-490.0,0.00019178,2]
[366903040,1750561848023,-500.0,0.00019178,2]
[366903041,1750561848033,-500.0,0.00019178,2]
[366903042,1750561848044,-500.0,0.00019178,2]
[366903043,1750561848056,-500.0,0.00019178,2]
[366903044,1750561848067,-500.0,0.00019178,2]
[366903045,1750561848079,-2292.45,0.00019178,2]
[366903046,1750561848090,-500.0,0.00019178,2]
[366903047,1750561848102,-490.0,0.00019178,2]
[366903048,1750561848113,-500.0,0.00019178,2]
[366903049,1750561848123,-490.0,0.00019178,2]
[366903050,1750561848134,-490.0,0.00019178,2]
[366903051,1750561848145,-500.0,0.00019178,2]
[366903052,1750561848156,-490.0,0.00019178,2]
[366903053,1750561848166,-500.0,0.00019178,2]
[366903054,1750561848177,-500.0,0.00019178,2]
[366903055,1750561848187,-490.0,0.00019178,2]
[366903056,1750561848198,-500.0,0.00019178,2]
[366903057,1750561848209,-500.0,0.00019178,2]
[366903058,1750561848220,-490.0,0.00019178,2]
[366903059,1750561848230,-1668.32,0.00019178,2]
[366903060,1750561848240,-490.0,0.00019178,2]
[366903061,1750561848251,-2092.38,0.00019178,2]
[366903062,1750561848261,-1110.04,0.00019178,2]
[366903063,1750561848271,-490.0,0.00019178,2]
[366903064,1750561848281,-490.0,0.00019178,2]
[366903065,1750561848292,-490.0,0.00019178,2]
[366903066,1750561848303,-490.0,0.00019178,2]
[366903067,1750561848314,-490.0,0.00019178,2]
[366903068,1750561848324,-555.53,0.00019178,2]
[366903069,1750561848335,-2522.32,0.00019178,2]
[366903070,1750561848345,-602.72897449,0.00019178,2]
[366903071,1750561848355,-151.0,0.00019178,2]
[366903072,1750561848366,-490.0,0.00019178,2]
[366903073,1750561848377,-154.975174,0.00019178,2]
[366903074,1750561848387,-490.0,0.00019178,2]
[366903075,1750561848398,-490.0,0.00019178,2]
[366903076,1750561848408,-802.27,0.00019178,2]
[366903077,1750561848422,-490.0,0.00019178,2]
[366903078,1750561848433,-213.00390354,0.00019178,2]
[366903079,1750561848443,-1000.0,0.00019178,2]
[366903080,1750561848456,-490.0,0.00019178,2]
[366903081,1750561848466,-490.0,0.00019178,2]
[366903082,1750561848476,-490.0,0.00019178,2]
[366903083,1750561848487,-490.0,0.00019178,2]
[366903084,1750561848498,-490.0,0.00019178,2]
[366903085,1750561848508,-490.0,0.00019178,2]
[366903086,1750561848518,-880.45,0.00019178,2]
[366903087,1750561848528,-490.0,0.00019178,2]
[366903088,1750561848539,-907.53,0.00019178,2]
[366903089,1750561848549,-490.0,0.00019178,2]
[366903090,1750561848559,-490.0,0.00019178,2]
[366903091,1750561848570,-1687.03,0.00019178,2]
[366903092,1750561848581,-490.0,0.00019178,2]
[366903093,1750561848591,-332.07214602,0.00019178,2]
[366903094,1750561848602,-1657.41,0.00019178,2]
[366903095,1750561848612,-1510.27,0.00019178,2]
[366903096,1750561848622,-490.0,0.00019178,2]
[366903097,1750561848633,-490.0,0.00019178,2]
[366903098,1750561848643,-580.0,0.00019178,2]
[366903099,1750561848654,-490.0,0.00019178,2]
[366903100,1750561848664,-490.0,0.00019178,2]
[366903101,1750561848675,-760.59,0.00019178,2]
[366903102,1750561848686,-541.39,0.00019178,2]
[366903103,1750561848696,-580.6,0.00019178,2]
[366903104,1750561848706,-490.0,0.00019178,2]
[366903105,1750561848718,-490.0,0.00019178,2]
[366903106,1750561848728,-490.0,0.00019178,2]
[366903107,1750561848739,-490.0,0.00019178,2]
[366903108,1750561848749,-490.0,0.00019178,2]
[366903109,1750561848759,-1979.49,0.00019178,2]
[366903110,1750561848770,-536.01703518,0.00019178,2]
[366903111,1750561848780,-490.0,0.00019178,2]
[366903112,1750561848790,-490.0,0.00019178,2]
[366903113,1750561848800,-1450.74,0.00019178,2]
[366903114,1750561848810,-490.0,0.00019178,2]
[366903115,1750561848821,-519.38,0.00019178,2]
[366903116,1750561848831,-760.14,0.00019178,2]
[366903117,1750561848842,-1251.57,0.00019178,2]
[366903118,1750561848852,-490.0,0.00019178,2]
[366903119,1750561848863,-490.0,0.00019178,2]
[366903120,1750561848874,-494.90961256,0.00019178,2]
[366903121,1750561848884,-490.0,0.00019178,2]
[366903122,1750561848894,-436.94392,0.00019178,2]
[366903123,1750561848904,-880.65,0.00019178,2]
[366903124,1750561848915,-490.0,0.00019178,2]
[366903125,1750561848926,-550.19985758,0.00019178,2]
[366903126,1750561848936,-435.29521589,0.00019178,2]
[366903127,1750561848946,-490.0,0.00019178,2]
[366903128,1750561848956,-968.31,0.00019178,2]
[366903129,1750561848967,-490.0,0.00019178,2]
[366903130,1750561848977,-490.0,0.00019178,2]
[366903131,1750561848989,-2870.44,0.00019178,2]
[366903132,1750561848999,-1069.67,0.00019178,2]
[366903133,1750561849009,-1625.72,0.00019178,2]
[366903134,1750561849020,-490.0,0.00019178,2]
[366903135,1750561849030,-715.61,0.00019178,2]
[366903136,1750561849040,-490.0,0.00019178,2]
[366903137,1750561849051,-490.0,0.00019178,2]
[366903138,1750561849061,-516.11981407,0.00019178,2]
[366903139,1750561849071,-386.39378245,0.00019178,2]
[366903140,1750561849395,-490.0,0.00019178,2]
[366903141,1750561849407,-490.0,0.00019178,2]
[366903142,1750561849420,-490.0,0.00019178,2]
[366903143,1750561849430,-491.41933267,0.00019178,2]
[366903144,1750561849440,-481.18521858,0.00019178,2]
[366903145,1750561849451,-1738.2,0.00019178,2]
[366903146,1750561849461,-1968.36,0.00019178,2]
[366903147,1750561849470,-490.0,0.00019178,2]
[366903148,1750561849479,-1022.06,0.00019178,2]
[366903149,1750561849491,-490.0,0.00019178,2]
[366903150,1750561849501,-490.0,0.00019178,2]
[366903151,1750561849511,-490.0,0.00019178,2]
[366903152,1750561849520,-836.76,0.00019178,2]
[366903153,1750561849530,-490.0,0.00019178,2]
[366903154,1750561849540,-490.0,0.00019178,2]
[366903155,1750561849550,-734.77,0.00019178,2]
[366903156,1750561849560,-490.0,0.00019178,2]